bitfinex-derivatives/quotes_SOLF0:USTF0_20241231
["timestamp","ask_amount","ask_price","bid_price","bid_amount"]
[1735668897805,2.5497,196.39,196.35,2.55]
[1735668898003,2.5497,196.39,196.36,3.5]
[1735668898203,13.61564477,196.45,196.34,15.46345156]
[1735668898416,13.61564477,196.45,196.36,3.5]
[1735668898697,13.61564477,196.45,196.34,2.5502]
[1735668898903,13.61564477,196.45,196.35,3.5]
[1735668899699,12.46525156,196.43,196.29,53.11385475]
[1735668899902,12.46525156,196.43,196.3,3.5]
[1735668900099,12.46525156,196.4,196.29,53.11385475]
[1735668900603,2.9805,196.39,196.27,6.5512]
[1735668901004,14.75463441,196.39,196.27,6.5512]
[1735668901205,16.59790973,196.39,196.27,6.5512]
[1735668901706,12.77033061,196.39,196.27,6.5512]
[1735668901902,2.5506,196.32,196.28,2.5509]
[1735668902302,2.9805,196.39,196.27,3.5]
[1735668902605,12.46525156,196.37,196.27,3.5]
[1735668903701,2.5509,196.3,196.25,15.01665156]
[1735668903908,12.46525156,196.37,196.26,3.5]
[1735668904207,2.5509,196.3,196.26,3.5]
[1735668905002,2.5509,196.29,196.26,3.5]
[1735668905503,2.5513,196.26,196.22,15.51145156]
[1735668905705,15.96525156,196.37,196.23,3.5]
[1735668906117,2.5512,196.27,196.23,6.0516]
[1735668906310,15.96525156,196.37,196.23,3.5]
[1735668906604,15.96525156,196.37,196.25,12.46525156]
[1735668906810,15.96525156,196.37,196.22,15.51145156]
[1735668906811,15.96525156,196.37,196.24,3.5]
[1735668908607,2.551,196.28,196.25,2.5514]
[1735668909007,15.96525156,196.37,196.24,3.5]
[1735668909207,12.46525156,196.34,196.23,3.5]
[1735668909405,12.46525156,196.31,196.21,3.5]
[1735668909807,2.5515,196.25,196.2,6.0519]
[1735668910011,12.46525156,196.31,196.2,6.0519]
[1735668910305,12.46525156,196.31,196.15,4.6339]
[1735668910512,1.51,196.3,196.16,3.5]
[1735668910712,1.51,196.3,196.16,15.96525156]
[1735668911008,1.51,196.3,196.19,12.46525156]
[1735668911212,1.51,196.3,196.16,3.5]
[1735668911408,1.51,196.3,196.18,12.46525156]
[1735668911612,1.51,196.3,196.2,2.552]
[1735668912708,2.5517,196.24,196.2,2.552]
[1735668912909,1.51,196.3,196.18,12.46525156]
[1735668913111,1.51,196.3,196.18,15.01745156]
[1735668913705,2.5512,196.27,196.18,15.01745156]
[1735668913907,1.51,196.3,196.18,12.46525156]
[1735668914111,1.51,196.3,196.19,2.5521]
[1735668914514,2.5517,196.23,196.19,2.5521]
[1735668914716,1.51,196.3,196.18,12.46525156]
[1735668914912,1.51,196.3,196.21,12.46525156]
[1735668915113,2.5514,196.25,196.22,3.5]
[1735668915307,1.51,196.3,196.22,3.5]
[1735668915818,2.5516,196.24,196.22,3.5]
[1735668916015,1.51,196.3,196.22,3.5]
[1735668916319,2.5517,196.23,196.22,3.5]
[1735668917114,1.51,196.3,196.22,3.5]
[1735668917913,2.5516,196.24,196.22,3.5]
[1735668918221,2.5516,196.24,196.23,7.99129447]
[1735668918419,7.99129447,196.28,196.22,3.5]
[1735668918618,2.5517,196.23,196.22,3.5]
[1735668920720,2.5518,196.22,196.21,7.99129447]
[1735668922718,2.5518,196.22,196.19,3.5]
[1735668922719,2.552,196.21,196.19,7.99129447]
[1735668928628,2.5523,196.18,196.16,7.99129447]
[1735668929427,7.99129447,196.24,196.16,10.54389447]
[1735668929627,2.5522,196.19,196.16,10.54389447]
[1735668930128,7.99129447,196.22,196.16,7.99129447]
[1735668930425,2.5526,196.17,196.15,7.99129447]
[1735668930626,7.99129447,196.18,196.07,1.5142]
[1735668930930,2.5532,196.11,196.08,2.5536]
[1735668931228,7.99129447,196.14,196.07,1.5142]
[1735668931428,7.99129447,196.14,196.07,11.49129447]
[1735668932023,2.5535,196.09,196.07,11.49129447]
[1735668932222,2.5535,196.09,196.07,3.5]
[1735668932522,7.99129447,196.12,196.05,7.99129447]
[1735668932732,7.99129447,196.14,196.07,7.99129447]
[1735668933025,3.5,196.17,196.07,10.54499447]
[1735668933227,7.99129447,196.13,196.07,7.99129447]
[1735668933425,3.5,196.17,196.09,10.54479447]
[1735668933626,4.5236,196.21,196.11,7.99129447]
[1735668933824,7.99129447,196.18,196.11,7.99129447]
[1735668934024,7.99129447,196.18,196.11,10.54449447]
[1735668934729,2.5528,196.15,196.11,7.99129447]
[1735668935129,2.5528,196.15,196.1,7.99129447]
[1735668935324,2.5528,196.15,196.1,10.54459447]
[1735668935830,2.5531,196.12,196.1,7.99129447]
[1735668936220,2.5531,196.12,196.09,3.5]
[1735668936424,2.5533,196.11,196.09,3.5]
[1735668936636,7.99129447,196.14,196.06,7.99129447]
[1735668936927,7.99129447,196.12,196.06,11.49129447]
[1735668938032,2.5535,196.1,196.06,14.04519447]
[1735668938231,7.99129447,196.12,196.06,11.49129447]
[1735668938625,7.99129447,196.12,196.04,11.49129447]
[1735668939026,2.5538,196.07,196.04,11.49129447]
[1735668939428,3.5,196.17,196.06,7.99129447]
[1735668939627,3.5,196.17,196.08,7.99129447]
[1735668939831,7.99129447,196.16,196.08,7.99129447]
[1735668940433,7.99129447,196.14,196.07,7.99129447]
[1735668940635,2.5535,196.1,196.07,7.99129447]
[1735668940931,7.99129447,196.14,196.07,7.99129447]
[1735668941329,2.5538,196.07,196.06,3.5]
[1735668941532,7.99129447,196.12,196.04,11.49129447]
[1735668942237,7.99129447,196.12,196.06,7.99129447]
[1735668942930,2.5536,196.09,196.06,7.99129447]
[1735668944139,2.5537,196.08,196.06,7.99129447]
[1735668945540,7.99129447,196.08,195.91,53.08]
[1735668945743,7.99129447,196.03,195.93,1.4475]
[1735668945936,7.99129447,196.03,195.96,7.99129447]
[1735668946740,2.5553,195.96,195.94,11.49129447]
[1735668947140,2.5553,195.95,195.94,7.99129447]
[1735668947344,3.5,196.06,195.92,3.5]
[1735668947345,7.99129447,195.99,195.92,11.49129447]
[1735668947641,7.99129447,195.99,195.92,7.99129447]
[1735668948341,12.52654986,196.01,195.91,1.4725]
[1735668948538,12.52654986,196.04,195.91,13.99904986]
[1735668948934,3.5,196.06,195.91,13.99904986]
[1735668949237,28.13182134,196.09,195.94,12.52654986]
[1735668949443,12.52654986,196.07,195.95,6.0553]
[1735668949644,12.52654986,196.07,195.95,7.5612]
[1735668949841,12.52654986,196.07,195.95,5.0059]
[1735668950441,3.5,196.08,195.91,1.4725]
[1735668950442,12.52654986,196.04,195.91,1.4725]
[1735668950651,12.52654986,196.01,195.91,1.4725]
[1735668951041,2.5549,195.98,195.91,1.4725]
[1735668951348,12.52654986,196.05,195.93,12.52654986]
[1735668951541,12.52654986,196.05,195.91,1.4725]
[1735668951741,12.52654986,196.05,195.92,12.52654986]
[1735668952041,2.555,195.98,195.93,2.5556]
[1735668952846,1.4594,196.11,195.95,12.52654986]
[1735668953146,12.52654986,196.14,196.01,12.52654986]
[1735668953339,12.52654986,196.14,196.02,3.5]
[1735668953946,2.5543,196.04,196.02,3.5]
[1735668954339,2.5543,196.04,195.99,4.0018]
[1735668954545,2.5543,196.04,196.0,3.5]
[1735668956548,2.5543,196.03,196.0,3.5]
[1735668957157,2.5543,196.03,196.0,6.0547]
[1735668957350,2.5542,196.04,196.0,6.0547]
[1735668958042,2.5544,196.03,196.0,3.5]
[1735668958639,2.5542,196.04,196.0,6.0546]
[1735668959046,12.52654986,196.11,196.0,6.0546]
[1735668959351,2.5544,196.03,196.0,3.5]
[1735668959645,12.52654986,196.08,195.99,1.4471]
[1735668959856,12.52654986,196.08,195.99,4.9471]
[1735668960348,2.5547,196.0,195.99,4.9471]
[1735668960542,12.52654986,196.08,195.96,3.0286]
[1735668960748,12.52654986,196.08,195.97,3.5]
[1735668960948,12.52654986,196.05,195.97,3.5]
[1735668961665,2.5548,195.99,195.97,3.5]
[1735668961859,12.52654986,196.05,195.97,3.5]
[1735668962147,12.52654986,196.05,195.94,3.5]
[1735668962353,12.52654986,196.02,195.93,4.0082]
[1735668962555,12.52654986,196.02,195.94,3.5]
[1735668962946,12.52654986,196.02,195.94,6.0554]
[1735668964146,2.555,195.98,195.94,6.0554]
[1735668964346,1.5004,196.07,195.98,2.5549]
[1735668964548,2.5545,196.02,195.98,2.5549]
[1735668964956,12.52654986,196.08,196.0,2.5545]
[1735668964957,2.5541,196.05,196.0,2.5545]
[1735668965155,12.52654986,196.08,196.0,3.5]
[1735668965645,2.5543,196.03,196.0,3.5]
[1735668965846,12.52654986,196.08,196.0,3.5]
[1735668966653,2.5545,196.01,196.0,3.5]
[1735668968847,2.5543,196.03,196.0,3.5]
[1735668969347,12.52654986,196.08,196.0,3.5]
[1735668970049,2.5545,196.01,196.0,3.5]
[1735668970847,12.52654986,196.08,196.0,3.5]
[1735668971444,2.5544,196.03,196.0,3.5]
[1735668971645,12.52654986,196.11,196.01,2.5544]
[1735668971846,12.52654986,196.11,196.0,3.5]
[1735668972149,2.5541,196.05,196.0,3.5]
[1735668972351,2.5541,196.05,196.01,2.5544]
[1735668972854,2.5542,196.04,196.0,3.5]
[1735668973145,12.52654986,196.11,196.0,6.0546]
[1735668973764,2.5537,196.08,196.0,6.0546]
[1735668973953,12.52654986,196.11,196.0,6.0546]
[1735668974152,12.52654986,196.11,196.01,2.5545]
[1735668974553,2.5541,196.05,196.0,3.5]
[1735668974754,12.52654986,196.11,196.02,2.5543]
[1735668974953,12.52654986,196.11,196.0,16.02654986]
[1735668975157,2.554,196.06,196.0,16.02654986]
[1735668975551,2.554,196.06,196.02,2.5544]
[1735668975753,12.52654986,196.11,196.02,2.5544]
[1735668976260,2.554,196.05,196.02,2.5544]
[1735668976860,12.52654986,196.11,195.98,4.9701]
[1735668976861,12.52654986,196.08,195.98,4.9701]
[1735668977259,12.52654986,196.08,195.98,1.4701]
[1735668977260,2.5548,195.99,195.98,1.4701]
[1735668977456,2.5548,195.99,195.98,4.9701]
[1735668977663,12.52654986,196.05,195.96,3.5]
[1735668978157,2.555,195.98,195.96,3.5]
[1735668979061,2.5548,195.99,195.96,3.5]
[1735668979463,2.5548,195.99,195.97,3.5]
[1735668982560,2.5548,195.99,195.97,6.055]
[1735668983558,12.52654986,196.08,195.97,3.5]
[1735668983559,2.5547,196.0,195.97,3.5]
[1735668983762,9.75024135,196.08,195.98,12.52654986]
[1735668983958,12.52654986,196.08,195.97,3.5]
[1735668984266,12.52654986,196.08,195.98,2.5548]
[1735668984464,12.52654986,196.08,195.97,3.5]
[1735668984861,40.6583712,196.11,195.98,12.52654986]
[1735668985167,40.6583712,196.11,195.99,3.5]
[1735668985366,40.6583712,196.11,195.99,5.0824]
[1735668985567,2.5543,196.04,196.01,2.5545]
[1735668986363,2.5543,196.04,196.02,2.5544]
[1735668986564,12.52654986,196.11,195.99,5.0824]
[1735668986770,21.09886601,196.13,196.01,12.52654986]
[1735668986969,37.89442476,196.13,196.01,12.52654986]
[1735668987171,2.5535,196.09,196.06,2.5539]
[1735668987468,2.5535,196.09,196.07,3.5]
[1735668987976,12.52654986,196.12,196.03,3.5]
[1735668988771,22.29097779,196.12,196.03,3.5]
[1735668989172,3.83317829,196.11,196.03,3.5]
[1735668989372,12.52654986,196.09,196.03,3.5]
[1735668989674,2.5541,196.04,196.03,3.5]
[1735668991277,9.77294677,196.11,196.03,3.5]
[1735668991576,13.606089,196.11,196.03,3.5]
[1735668991978,2.554,196.05,196.03,3.5]
[1735668992177,13.606089,196.11,196.03,3.5]
[1735668992375,9.77294677,196.11,196.03,3.5]
[1735668992575,28.13182134,196.12,196.05,12.52654986]
[1735668992874,7.03295533,196.12,196.11,2.5532]
[1735668993069,16.50782134,196.13,196.11,3.5]
[1735668993378,16.50782134,196.13,196.12,2.5531]
[1735668993776,11.70542134,196.13,196.12,2.5531]
[1735668993986,56.2636427,196.23,196.14,2.5528]
[1735668994174,56.2636427,196.23,196.11,16.02654986]
[1735668994374,13.60694075,196.22,196.11,16.02654986]
[1735668994577,9.77587199,196.22,196.11,16.02654986]
[1735668994778,2.5522,196.19,196.12,2.5531]
[1735668994978,9.77587199,196.22,196.12,2.5531]
[1735668995180,15.55004986,196.25,196.12,2.5531]
[1735668995479,2.5526,196.17,196.12,2.5531]
[1735668996180,2.5526,196.16,196.12,2.5531]
[1735668996979,13.49062429,196.24,196.11,16.02654986]
[1735668997180,2.5524,196.18,196.13,2.5529]
[1735668997783,2.5525,196.17,196.13,2.5529]
[1735668998183,2.5526,196.16,196.12,2.5531]
[1735668999083,2.5526,196.16,196.11,16.02654986]
[1735668999285,2.5526,196.16,196.13,2.553]
[1735668999784,2.5525,196.17,196.13,2.553]
[1735668999985,9.65944231,196.24,196.15,2.5527]
[1735669000185,3.0235,196.25,196.16,3.5]
[1735669000380,3.0235,196.25,196.17,3.5]
[1735669000595,12.68294231,196.25,196.17,3.5]
[1735669001489,2.5517,196.23,196.17,3.5]
[1735669001686,12.68294231,196.25,196.17,3.5]
[1735669001986,12.52654986,196.29,196.17,3.5]
[1735669002288,12.52654986,196.26,196.17,3.5]
[1735669002487,2.5517,196.23,196.17,3.5]
[1735669002693,17.16724986,196.29,196.18,12.52654986]
[1735669002989,2.5517,196.24,196.19,2.5522]
[1735669004480,17.16724986,196.29,196.19,2.5522]
[1735669004682,2.5517,196.23,196.19,2.5522]
[1735669005683,17.16724986,196.29,196.18,12.52654986]
[1735669006181,2.5518,196.23,196.19,2.5522]
[1735669006389,4.6407,196.29,196.18,12.52654986]
[1735669006691,2.5512,196.27,196.21,12.52654986]
[1735669006891,2.5512,196.27,196.22,3.5]
[1735669007599,2.5512,196.27,196.23,2.5517]
[1735669007886,14.10014986,196.35,196.22,3.5]
[1735669008093,3.0295,196.34,196.22,3.5]
[1735669008390,2.5507,196.31,196.23,2.5516]
[1735669008695,3.0295,196.34,196.22,3.5]
[1735669009489,2.5511,196.28,196.24,2.5515]
[1735669009788,3.0295,196.34,196.24,2.5515]
[1735669009991,3.0295,196.34,196.22,3.5]
[1735669010187,2.5513,196.27,196.23,2.5516]
[1735669010485,12.52654986,196.32,196.23,3.48]
[1735669010891,2.5514,196.26,196.23,3.48]
[1735669011395,2.551,196.28,196.24,2.5515]
[1735669011792,3.0295,196.34,196.23,3.48]
[1735669012892,2.5513,196.27,196.23,3.48]
[1735669013087,2.5513,196.27,196.23,6.0316]
[1735669016088,3.0295,196.34,196.23,3.48]
[1735669016496,3.0295,196.34,196.24,12.52654986]
[1735669017299,2.5506,196.31,196.27,2.551]
[1735669017599,2.5506,196.31,196.28,3.48]
[1735669018198,3.0295,196.34,196.28,3.48]
[1735669018699,2.5509,196.29,196.28,3.48]
[1735669020996,2.5508,196.3,196.28,3.48]
[1735669021200,1.4862,196.34,196.28,3.48]
[1735669021391,12.52654986,196.38,196.28,3.48]
[1735669021807,2.5505,196.33,196.29,2.5508]
[1735669022396,3.0089,196.4,196.28,3.48]
[1735669022600,12.52654986,196.35,196.26,3.48]
[1735669022897,1.5449,196.34,196.26,3.48]
[1735669023098,1.5449,196.34,196.25,3.48]
[1735669023493,1.4493,196.33,196.25,3.48]
[1735669023700,2.5513,196.26,196.25,3.48]
[1735669024804,2.5517,196.23,196.2,2.552]
[1735669024995,2.5517,196.23,196.21,3.48]
[1735669025899,2.5517,196.23,196.2,2.552]
[1735669026203,2.5517,196.23,196.21,3.48]
[1735669027208,2.5518,196.22,196.21,3.48]
[1735669028307,2.5518,196.22,196.21,11.47237186]
[1735669029906,2.5517,196.23,196.21,11.47237186]
[1735669030128,2.5517,196.23,196.22,7.99237186]
[1735669030511,1.5596,196.32,196.22,7.99237186]
[1735669030808,1.5449,196.34,196.27,7.99237186]
[1735669031009,1.5449,196.34,196.27,11.47237186]
[1735669031209,2.551,196.28,196.27,11.47237186]
[1735669032307,2.551,196.28,196.27,3.48]
[1735669032611,2.5509,196.29,196.27,3.48]
[1735669032811,1.5449,196.34,196.27,3.48]
[1735669033416,2.5509,196.29,196.27,3.48]
[1735669033717,14.02722962,196.34,196.27,3.48]
[1735669034210,2.5516,196.24,196.23,3.48]
[1735669034413,12.48232962,196.31,196.23,3.48]
[1735669034610,2.5512,196.27,196.23,3.48]
[1735669034913,14.02722962,196.34,196.23,3.48]
[1735669035214,14.02722962,196.34,196.25,2.5513]
[1735669035415,1.5449,196.34,196.24,12.48232962]
[1735669035713,1.5449,196.34,196.27,2.5511]
[1735669035914,1.5449,196.34,196.28,3.48]
[1735669036716,2.5508,196.31,196.28,3.48]
[1735669037115,2.9628,196.38,196.28,3.48]
[1735669037514,2.5501,196.35,196.31,2.5506]
[1735669037714,21.13559842,196.39,196.33,12.48232962]
[1735669037911,21.13559842,196.39,196.34,3.48]
[1735669038114,2.55,196.36,196.34,3.48]
[1735669038426,21.13559842,196.39,196.34,3.48]
[1735669038820,2.55,196.36,196.34,3.48]
[1735669039819,12.48232962,196.4,196.3,3.48]
[1735669040015,13.96072962,196.4,196.3,3.48]
[1735669040816,2.5501,196.36,196.31,2.5505]
[1735669041124,1.5132,196.41,196.3,15.96232962]
[1735669041323,2.5499,196.37,196.33,2.5503]
[1735669041816,2.5499,196.37,196.33,15.03262962]
[1735669042012,21.13559842,196.43,196.33,15.03262962]
[1735669042619,2.5499,196.38,196.33,15.03262962]
[1735669042920,3.0063,196.44,196.33,15.03262962]
[1735669043121,3.0063,196.44,196.33,12.48232962]
[1735669043318,2.5496,196.4,196.33,12.48232962]
[1735669043925,2.5496,196.4,196.35,2.5501]
[1735669044118,2.5496,196.4,196.36,3.48]
[1735669044722,2.5496,196.39,196.36,3.48]
[1735669045119,3.0063,196.44,196.36,3.48]
[1735669045322,3.0063,196.44,196.36,6.03]
[1735669045626,3.0063,196.44,196.36,3.48]
[1735669045818,2.5499,196.37,196.36,3.48]
[1735669046123,2.5499,196.37,196.31,4.5634]
[1735669046124,12.48232962,196.43,196.31,4.5634]
[1735669046321,12.48232962,196.43,196.32,3.48]
[1735669046525,12.48232962,196.4,196.3,12.48232962]
[1735669046727,12.48232962,196.4,196.31,3.48]
[1735669047026,2.5508,196.3,196.29,3.48]
[1735669051827,2.5513,196.26,196.25,3.48]
[1735669052525,3.82833774,196.34,196.22,17.01322962]
[1735669052731,2.5517,196.23,196.22,12.48232962]
[1735669053027,9.67364344,196.33,196.19,65.52232962]
[1735669053230,2.5521,196.2,196.19,65.52232962]
[1735669053432,2.5521,196.2,196.19,69.00232962]
[1735669053735,2.5524,196.18,196.13,4.0977]
[1735669053933,12.48232962,196.28,196.14,15.96232962]
[1735669054121,2.9209,196.27,196.14,15.96232962]
[1735669054320,2.5525,196.17,196.14,15.96232962]
[1735669054733,12.48232962,196.25,196.15,3.48]
[1735669054931,2.5526,196.16,196.15,3.48]
[1735669056126,12.48232962,196.25,196.14,3.48]
[1735669056331,0.77960027,196.24,196.14,3.48]
[1735669056727,1.484,196.23,196.11,12.48232962]
[1735669056932,1.484,196.23,196.11,3.48]
[1735669056933,13.26162338,196.22,196.11,3.48]
[1735669057142,12.48232962,196.22,196.11,3.48]
[1735669057323,2.5534,196.1,196.09,3.48]
[1735669057924,2.5532,196.12,196.09,3.48]
[1735669058129,22.15723145,196.22,196.09,3.48]
[1735669058632,12.48232962,196.22,196.09,3.48]
[1735669059531,2.5523,196.19,196.09,3.48]
[1735669059731,12.48232962,196.22,196.09,3.48]
[1735669060124,2.5524,196.18,196.09,3.48]
[1735669060323,12.48232962,196.22,196.09,3.48]
[1735669060725,2.5532,196.12,196.09,3.48]
[1735669062436,2.5534,196.1,196.09,3.48]
[1735669062728,12.48232962,196.19,196.05,12.48232962]
[1735669062929,12.48232962,196.16,196.05,12.48232962]
[1735669063133,2.5538,196.07,196.06,3.48]
[1735669063730,2.5538,196.07,196.0,2.5546]
[1735669063929,2.5543,196.04,196.01,12.48232962]
[1735669065839,4.7006,196.15,196.01,12.48232962]
[1735669066036,2.5543,196.03,196.01,12.48232962]
[1735669067935,4.7006,196.15,196.01,12.48232962]
[1735669068137,4.7006,196.15,196.04,12.48232962]
[1735669068333,15.96232962,196.22,196.07,12.48232962]
[1735669068538,12.48232962,196.22,196.1,12.48232962]
[1735669068737,2.553,196.14,196.11,3.48]
[1735669068943,20.56102962,196.25,196.11,3.48]
[1735669069138,2.5519,196.22,196.13,12.48232962]
[1735669069349,20.56102962,196.25,196.13,12.48232962]
[1735669070237,2.5525,196.18,196.13,15.03522962]
[1735669070438,17.08102962,196.25,196.13,12.48232962]
[1735669070637,4.5987,196.25,196.13,12.48232962]
[1735669071144,4.5987,196.25,196.15,2.5526]
[1735669071348,4.5987,196.25,196.16,3.48]
[1735669072537,12.48232962,196.28,196.16,3.48]
[1735669072746,2.5524,196.18,196.16,3.48]
[1735669075847,4.5115,196.27,196.16,15.96232962]
[1735669076551,2.5523,196.19,196.16,15.96232962]
[1735669077650,2.552,196.21,196.16,15.96232962]
[1735669077848,4.5115,196.27,196.16,15.96232962]
[1735669078049,4.5115,196.27,196.16,18.51482962]
[1735669078346,2.5516,196.24,196.16,18.51482962]
[1735669078550,4.5115,196.27,196.16,3.48]
[1735669078860,2.5516,196.24,196.16,15.96232962]
[1735669079054,4.5115,196.27,196.16,15.96232962]
[1735669080252,4.5115,196.27,196.16,18.51492962]
[1735669081450,2.5521,196.2,196.16,18.51492962]
[1735669082760,2.5522,196.19,196.16,18.51492962]
[1735669083653,4.5115,196.27,196.16,15.96232962]
[1735669083956,4.5115,196.27,196.16,3.48]
[1735669084554,2.5525,196.17,196.16,3.48]
[1735669084855,5.1027,196.26,196.15,3.48]
[1735669085257,2.5526,196.16,196.15,3.48]
[1735669086551,2.5525,196.17,196.15,3.48]
[1735669089355,5.1027,196.26,196.15,3.48]
[1735669089558,2.5526,196.16,196.15,3.48]
[1735669090864,2.5524,196.18,196.15,6.0327]
[1735669091159,3.0141,196.27,196.17,12.48232962]
[1735669091866,2.5521,196.2,196.17,15.03472962]
[1735669093956,2.5519,196.21,196.18,2.5523]
[1735669094165,9.66314432,196.3,196.2,12.48232962]
[1735669094353,7.96716689,196.31,196.21,3.48]
[1735669094661,2.5515,196.25,196.23,12.48232962]
[1735669094879,2.986,196.32,196.23,12.48232962]
[1735669095649,2.986,196.32,196.23,15.03402962]
[1735669096064,2.5517,196.23,196.21,3.48]
[1735669096258,12.48232962,196.31,196.21,3.48]
[1735669097154,2.5518,196.22,196.21,3.48]
[1735669100761,2.986,196.32,196.21,3.48]
[1735669100968,2.986,196.32,196.24,2.5515]
[1735669101356,2.551,196.29,196.23,12.48232962]
[1735669101665,28.20812519,196.34,196.26,12.48232962]
[1735669101863,28.20812519,196.34,196.27,3.48]
[1735669102464,7.07252677,196.34,196.26,12.48232962]
[1735669102662,5.1003,196.35,196.24,3.48]
[1735669102859,2.5515,196.25,196.24,3.48]
[1735669103870,25.63392051,196.34,196.2,12.48232962]
[1735669104062,5.1018,196.3,196.21,3.48]
[1735669104257,3.0946,196.29,196.21,3.48]
[1735669105057,2.5518,196.22,196.21,3.48]
[1735669105765,2.5521,196.2,196.17,13.95272962]
[1735669105967,2.5521,196.2,196.18,3.48]
[1735669106163,3.0946,196.29,196.18,3.48]
[1735669106369,28.20812519,196.31,196.22,15.03412962]
[1735669106561,28.20812519,196.31,196.23,3.48]
[1735669107261,2.5515,196.24,196.23,3.48]
[1735669108368,2.5517,196.23,196.22,12.48232962]
[1735669108559,2.5517,196.23,196.22,3.48]
[1735669108959,37.88465743,196.33,196.19,12.48232962]
[1735669109263,2.5521,196.2,196.19,12.48232962]
[1735669109467,2.5521,196.2,196.19,15.96232962]
[1735669109870,2.5521,196.2,196.19,15.94232962]
[1735669110076,2.5521,196.2,196.19,13.45148313]
[1735669113270,2.5521,196.2,196.19,3.46]
[1735669113678,2.5525,196.17,196.16,3.46]
[1735669114370,9.99148313,196.23,196.11,53.06]
[1735669114571,2.5531,196.12,196.11,53.06]
[1735669114771,5.1037,196.22,196.11,3.46]
[1735669114966,26.19997728,196.22,196.11,3.46]
[1735669115165,14.78451805,196.22,196.11,3.46]
[1735669115363,9.68081805,196.21,196.13,9.99148313]
[1735669115572,45.99071635,196.22,196.13,9.99148313]
[1735669116189,2.5526,196.16,196.13,9.99148313]
[1735669116369,10.23732677,196.25,196.13,9.99148313]
[1735669116576,14.06781727,196.25,196.13,9.99148313]
[1735669116772,31.36581741,196.25,196.13,9.99148313]
[1735669116973,3.83054162,196.24,196.13,9.99148313]
[1735669117173,2.5528,196.15,196.13,9.99148313]
[1735669117374,3.83054162,196.24,196.13,9.99148313]
[1735669117574,9.71862805,196.24,196.13,9.99148313]
[1735669117780,2.5528,196.15,196.13,9.99148313]
[1735669118274,16.71396967,196.25,196.13,9.99148313]
[1735669118479,2.5528,196.14,196.13,9.99148313]
[1735669119383,2.5528,196.14,196.13,13.45148313]
[1735669120884,16.71396967,196.25,196.13,13.45148313]
[1735669121107,12.88342805,196.25,196.17,9.99148313]
[1735669121280,12.88342805,196.25,196.18,3.46]
[1735669121880,2.5522,196.19,196.18,3.46]
[1735669123878,3.1648,196.25,196.18,3.46]
[1735669124478,2.5518,196.23,196.2,9.99148313]
[1735669124783,59.1992427,196.3,196.2,9.99148313]
[1735669125184,2.9356,196.3,196.2,9.99148313]
[1735669125774,2.5512,196.27,196.2,9.99148313]
[1735669125974,9.71821224,196.29,196.2,9.99148313]
[1735669126386,2.9356,196.3,196.2,9.99148313]
[1735669126579,14.34519558,196.3,196.2,9.99148313]
[1735669127478,2.5519,196.21,196.2,9.99148313]
[1735669129186,2.5522,196.19,196.18,3.46]
[1735669132180,9.99148313,196.25,196.15,3.46]
[1735669132385,1.4611,196.24,196.15,3.46]
[1735669132985,5.29102385,196.24,196.15,3.46]
[1735669133185,2.5526,196.16,196.15,3.46]
[1735669134191,3.1274,196.22,196.15,3.46]
[1735669134385,11.17931224,196.24,196.15,13.45148313]
[1735669134584,1.4611,196.24,196.15,13.45148313]
[1735669134783,2.5522,196.19,196.16,2.5525]
[1735669134989,2.5522,196.19,196.15,13.45148313]
[1735669135892,2.5524,196.18,196.15,13.45148313]
[1735669136280,1.4611,196.24,196.15,13.45148313]
[1735669136484,1.4611,196.24,196.15,3.46]
[1735669137189,2.5526,196.16,196.15,3.46]